fUST/lending_fUST_20251115
["ID","MTS","AMOUNT","RATE_DAILY","PERIOD"]
[393973672,1763150155399,-500.0,0.00054794,120]
[393973673,1763150155422,-500.0,0.00054794,120]
[393973674,1763150155447,-500.0,0.00054794,120]
[393973675,1763150155471,-500.0,0.00054794,120]
[393973676,1763150155497,-500.0,0.00054794,120]
[393973677,1763150155524,-500.0,0.00054794,120]
[393973678,1763150155550,-442.41064335,0.00054794,120]
[393973679,1763150155577,-500.0,0.00054794,120]
[393973680,1763150155602,-500.0,0.00054794,120]
[393973681,1763150155627,-500.0,0.00054794,120]
[393973682,1763150155650,-500.0,0.00054794,100]
[393973683,1763150155673,-500.0,0.00054794,120]
[393973684,1763150155697,-500.0,0.00054794,120]
[393973685,1763150155721,-500.0,0.00054794,120]
[393973686,1763150155745,-503.08674536,0.00054794,120]
[393973687,1763150155770,-1121.62,0.00054794,120]
[393973688,1763150155795,-500.0,0.00054794,120]
[393973689,1763150155820,-500.0,0.00054794,120]
[393973690,1763150155844,-500.0,0.00054794,120]
[393973691,1763150155869,-500.0,0.00054794,120]
[393973692,1763150155894,-500.0,0.00054794,120]
[393973693,1763150155918,-500.0,0.00054794,120]
[393973694,1763150155942,-500.0,0.00054794,120]
[393973695,1763150155967,-500.0,0.00054794,120]
[393973696,1763150155991,-500.0,0.00054794,120]
[393973697,1763150156015,-500.0,0.00054794,120]
[393973698,1763150156048,-500.0,0.00054794,120]
[393973699,1763150156075,-500.0,0.00054794,120]
[393973700,1763150156101,-500.0,0.00054794,120]
[393973701,1763150156132,-500.0,0.00054794,120]
[393973702,1763150156159,-500.0,0.00054794,120]
[393973703,1763150156183,-500.0,0.00054794,120]
[393973704,1763150156208,-386.09534047,0.00054794,120]
[393973705,1763150156242,-500.0,0.00054794,120]
[393973706,1763150156268,-500.0,0.00054794,120]
[393973707,1763150156293,-500.0,0.00054794,120]
[393973708,1763150156317,-504.04705662,0.00054794,120]
[393973709,1763150156341,-500.0,0.00054794,120]
[393973710,1763150156364,-500.0,0.00054794,120]
[393973711,1763150156387,-500.0,0.00054794,120]
[393973712,1763150156411,-500.0,0.00054794,120]
[393973713,1763150156433,-500.0,0.00054794,120]
[393973714,1763150156458,-501.96421764,0.00054794,120]
[393973715,1763150156481,-500.0,0.00054794,120]
[393973716,1763150156505,-502.28659002,0.00054794,120]
[393973717,1763150156528,-500.0,0.00054794,120]
[393973718,1763150156553,-500.0,0.00054794,120]
[393973719,1763150156577,-500.0,0.00054794,120]
[393973720,1763150156600,-500.0,0.00054794,120]
[393973721,1763150156732,-500.0,0.00054794,120]
[393973722,1763150156758,-500.0,0.00054794,120]
[393973723,1763150156784,-500.0,0.00054794,120]
[393973724,1763150156808,-500.0,0.00054794,120]
[393973725,1763150156834,-503.47349866,0.00054794,120]
[393973726,1763150156858,-500.0,0.00054794,120]
[393973727,1763150156884,-500.0,0.00054794,120]
[393973728,1763150156909,-260.16129302,0.00054794,120]
[393973729,1763150156935,-500.0,0.00054794,120]
[393973730,1763150156960,-500.0,0.00054794,120]
[393973731,1763150156986,-500.0,0.00054794,120]
[393973732,1763150157012,-500.0,0.00054794,120]
[393973733,1763150157038,-500.0,0.00054794,120]
[393973734,1763150157063,-500.0,0.00054794,120]
[393973735,1763150157087,-500.0,0.00054794,120]
[393973736,1763150157112,-676.32,0.00054794,120]
[393973737,1763150157139,-500.0,0.00054794,120]
[393973738,1763150157167,-500.0,0.00054794,120]
[393973739,1763150157193,-500.0,0.00054794,120]
[393973740,1763150157219,-500.0,0.00054794,120]
[393973741,1763150157244,-500.0,0.00054794,120]
[393973742,1763150157269,-500.0,0.00054794,120]
[393973743,1763150157292,-522.46223799,0.00054794,120]
[393973744,1763150157317,-969.7,0.00054794,120]
[393973745,1763150157341,-500.0,0.00054794,120]
[393973746,1763150157365,-500.0,0.00054794,120]
[393973747,1763150157389,-500.0,0.00054794,120]
[393973748,1763150157413,-307.34186992,0.00054794,120]
[393973749,1763150157438,-502.26764542,0.00054794,120]
[393973750,1763150157462,-500.0,0.00054794,120]
[393973751,1763150157485,-500.0,0.00054794,120]
[393973752,1763150157509,-266.9630057,0.00054794,30]
[393973753,1763150157533,-500.0,0.00054794,120]
[393973754,1763150157556,-504.75359935,0.00054794,120]
[393973755,1763150157580,-500.0,0.00054794,120]
[393973756,1763150157603,-500.0,0.00054794,120]
[393973757,1763150157626,-500.0,0.00054794,120]
[393973758,1763150157649,-500.0,0.00054794,120]
[393973759,1763150157674,-500.0,0.00054794,120]
[393973760,1763150157698,-500.0,0.00054794,120]
[393973761,1763150157723,-500.0,0.00054794,120]
[393973762,1763150157747,-500.0,0.00054794,120]
[393973763,1763150157772,-500.0,0.00054794,120]
[393973764,1763150157796,-500.0,0.00054794,120]
[393973765,1763150157822,-500.0,0.00054794,120]
[393973766,1763150157847,-500.0,0.00054794,120]
[393973767,1763150157873,-500.0,0.00054794,120]
[393973768,1763150157898,-1000.0,0.00054794,30]
[393973769,1763150157923,-500.0,0.00054794,120]
[393973770,1763150157948,-500.0,0.00054794,120]
[393973771,1763150157975,-500.0,0.00054794,120]
[393973772,1763150158000,-500.57124465,0.00054794,120]
[393973773,1763150158026,-508.6078477,0.00054794,120]
[393973774,1763150158054,-500.0,0.00054794,120]
[393973775,1763150158079,-500.0,0.00054794,120]
[393973776,1763150158103,-500.20553006,0.00054794,120]
[393973777,1763150158128,-1119.68,0.00054794,120]
[393973778,1763150158155,-500.0,0.00054794,120]
[393973779,1763150158180,-500.0,0.00054794,120]
[393973780,1763150158204,-500.0,0.00054794,120]
[393973781,1763150158229,-500.0,0.00054794,120]
[393973782,1763150158254,-500.0,0.00054794,120]
[393973783,1763150158280,-500.0,0.00054794,120]
[393973784,1763150158306,-502.77102422,0.00054794,120]
[393973785,1763150158330,-500.0,0.00054794,120]
[393973786,1763150158355,-1200.06,0.00054794,120]
[393973787,1763150158379,-500.0,0.00054794,120]
[393973788,1763150158403,-504.53,0.00054794,120]
[393973789,1763150158432,-500.24263731,0.00054794,120]
[393973790,1763150158456,-500.0,0.00054794,120]
[393973791,1763150158480,-500.0,0.00054794,120]
[393973792,1763150158504,-505.91105382,0.00054794,120]
[393973793,1763150158529,-918.75,0.00054794,120]
[393973794,1763150158552,-500.0,0.00054794,120]
[393973795,1763150158576,-500.0,0.00054794,120]
[393973796,1763150158600,-500.0,0.00054794,120]
[393973797,1763150158624,-500.0,0.00054794,120]
[393973798,1763150158758,-500.0,0.00054794,120]
[393973799,1763150158785,-500.0,0.00054794,120]
[393973800,1763150158811,-500.0,0.00054794,120]
[393973801,1763150158836,-500.0,0.00054794,120]
[393973802,1763150158862,-756.29,0.00054794,120]
[393973803,1763150158890,-500.0,0.00054794,120]
[393973804,1763150158915,-500.0,0.00054794,120]
[393973805,1763150158941,-500.0,0.00054794,120]
[393973806,1763150158969,-500.38792997,0.00054794,30]
[393973807,1763150158993,-500.0,0.00054794,120]
[393973808,1763150159020,-500.0,0.00054794,120]
[393973809,1763150159044,-500.0,0.00054794,120]
[393973810,1763150159068,-424.4175093,0.00054794,120]
[393973811,1763150159092,-662.79,0.00054794,120]
[393973812,1763150159118,-500.0,0.00054794,120]
[393973813,1763150159143,-500.0,0.00054794,120]
[393973814,1763150159172,-500.0,0.00054794,120]
[393973815,1763150159198,-500.0,0.00054794,120]
[393973816,1763150159228,-500.0,0.00054794,120]
[393973817,1763150159255,-500.0,0.00054794,120]
[393973818,1763150159284,-512.19,0.00054794,120]
[393973819,1763150159310,-500.0,0.00054794,120]
[393973820,1763150159335,-500.0,0.00054794,120]
[393973821,1763150159366,-500.0,0.00054794,120]
[393973822,1763150159391,-500.0,0.00054794,120]
[393973823,1763150159417,-500.0,0.00054794,120]
[393973824,1763150159441,-384.43398846,0.00054794,120]
[393973825,1763150159465,-500.0,0.00054794,120]
[393973826,1763150159490,-500.0,0.00054794,120]
[393973827,1763150159517,-500.0,0.00054794,120]
[393973828,1763150159542,-500.0,0.00054794,120]
[393973829,1763150159567,-500.0,0.00054794,120]
[393973830,1763150159595,-500.0,0.00054794,120]
[393973831,1763150159620,-500.0,0.00054794,120]
[393973832,1763150159645,-500.0,0.00054794,120]
[393973833,1763150159670,-500.0,0.00054794,120]
[393973834,1763150159694,-1048.81,0.00054794,120]
[393973835,1763150159718,-500.0,0.00054794,120]
[393973836,1763150159743,-500.0,0.00054794,120]
[393973837,1763150159768,-500.0,0.00054794,120]
[393973838,1763150159794,-930.55,0.00054794,120]
[393973839,1763150159818,-500.0,0.00054794,120]
[393973840,1763150159842,-500.0,0.00054794,120]
[393973841,1763150159866,-500.0,0.00054794,120]
[393973842,1763150159891,-500.0,0.00054794,120]
[393973843,1763150159916,-500.0,0.00054794,120]
[393973844,1763150159941,-500.0,0.00054794,120]
[393973845,1763150159967,-500.0,0.00054794,120]
[393973846,1763150159992,-500.0,0.00054794,120]
[393973847,1763150160018,-508.41925874,0.00054794,120]
[393973848,1763150160045,-500.0,0.00054794,120]
[393973849,1763150160069,-500.0,0.00054794,120]
[393973850,1763150160094,-500.0,0.00054794,120]
[393973851,1763150160118,-500.0,0.00054794,120]
[393973852,1763150160142,-500.0,0.00054794,120]
[393973853,1763150160170,-536.43,0.00054794,120]
[393973854,1763150160196,-500.0,0.00054794,120]
[393973855,1763150160223,-500.0,0.00054794,120]
[393973856,1763150160248,-500.0,0.00054794,120]
[393973857,1763150160274,-500.0,0.00054794,120]
[393973858,1763150160299,-500.0,0.00054794,120]
[393973859,1763150160324,-500.0,0.00054794,120]
[393973860,1763150160347,-500.0,0.00054794,120]
[393973861,1763150160371,-500.0,0.00054794,120]
[393973862,1763150160394,-500.0,0.00054794,120]
[393973863,1763150160418,-500.0,0.00054794,120]
[393973864,1763150160443,-500.0,0.00054794,120]
[393973865,1763150160468,-682.69,0.00054794,120]
[393973866,1763150160492,-500.86991204,0.00054794,120]
[393973867,1763150160516,-500.0,0.00054794,120]
[393973868,1763150160540,-502.6236949,0.00054794,120]
[393973869,1763150160566,-500.0,0.00054794,120]
[393973870,1763150160591,-500.0,0.00054794,120]
[393973871,1763150160614,-500.0,0.00054794,120]
[393973872,1763150160747,-500.0,0.00054794,120]
[393973873,1763150160774,-1271.94,0.00054794,120]
[393973874,1763150160800,-500.0,0.00054794,120]
[393973875,1763150160825,-503.8352765,0.00054794,120]
[393973876,1763150160851,-500.0,0.00054794,120]
[393973877,1763150160876,-2559.64,0.00054794,120]
[393973878,1763150160901,-500.0,0.00054794,120]
[393973879,1763150160926,-500.0,0.00054794,120]
[393973880,1763150160950,-500.0,0.00054794,120]
[393973881,1763150160975,-500.0,0.00054794,120]
[393973882,1763150161000,-500.0,0.00054794,120]
[393973883,1763150161027,-500.0,0.00054794,120]
[393973884,1763150161053,-500.0,0.00054794,120]
[393973885,1763150161079,-1061.44,0.00054794,120]
[393973886,1763150161103,-832.98,0.00054794,120]
[393973887,1763150161126,-500.0,0.00054794,120]
[393973888,1763150161151,-500.0,0.00054794,120]
[393973889,1763150161179,-500.0,0.00054794,120]
[393973890,1763150161202,-500.0,0.00054794,120]
[393973891,1763150161225,-500.0,0.00054794,120]
[393973892,1763150161249,-500.0,0.00054794,120]
[393973893,1763150161272,-984.88,0.00054794,120]
[393973894,1763150161296,-500.0,0.00054794,120]
[393973895,1763150161321,-951.76,0.00054794,120]
[393973896,1763150161347,-500.0,0.00054794,120]
[393973897,1763150161371,-500.0,0.00054794,120]
[393973898,1763150161393,-500.0,0.00054794,120]
[393973899,1763150161419,-4226.42,0.00054794,120]
[393973900,1763150161443,-500.0,0.00054794,120]
[393973901,1763150161466,-500.0,0.00054794,120]
[393973902,1763150161489,-500.0,0.00054794,120]
[393973903,1763150161513,-500.0,0.00054794,120]
[393973904,1763150161536,-500.0,0.00054794,120]
[393973905,1763150161558,-500.0,0.00054794,120]
[393973906,1763150161582,-500.0,0.00054794,120]
[393973907,1763150161606,-500.0,0.00054794,120]
[393973908,1763150161629,-500.0,0.00054794,120]
[393973909,1763150161655,-500.0,0.00054794,120]
[393973910,1763150161678,-500.0,0.00054794,120]
[393973911,1763150161703,-500.0,0.00054794,120]
[393973912,1763150161729,-500.0,0.00054794,120]
[393973913,1763150161754,-500.0,0.00054794,120]
[393973914,1763150161780,-552.25,0.00054794,120]
[393973915,1763150161805,-500.0,0.00054794,120]
[393973916,1763150161833,-500.0,0.00054794,120]
[393973917,1763150161857,-500.0,0.00054794,120]
[393973918,1763150161883,-999.0,0.00054794,120]
[393973919,1763150161908,-534.18,0.00054794,120]
[393973920,1763150161934,-500.0,0.00054794,120]
[393973921,1763150161959,-500.0,0.00054794,120]
[393973922,1763150161984,-500.0,0.00054794,120]
[393973923,1763150162008,-500.0,0.00054794,120]
[393973924,1763150162034,-500.0,0.00054794,120]
[393973925,1763150162059,-500.0,0.00054794,120]
[393973926,1763150162085,-500.0,0.00054794,120]
[393973927,1763150162108,-500.0,0.00054794,120]
[393973928,1763150162132,-500.0,0.00054794,120]
[393973929,1763150162158,-1150.72,0.00054794,120]
[393973930,1763150162183,-500.0,0.00054794,120]
[393973931,1763150162209,-500.0,0.00054794,120]
[393973932,1763150162233,-500.0,0.00054794,120]
[393973933,1763150162258,-500.0,0.00054794,120]
[393973934,1763150162285,-1618.18,0.00054794,30]
[393973935,1763150162310,-500.0,0.00054794,120]
[393973936,1763150162336,-1122.16,0.00054794,120]
[393973937,1763150162359,-1011.6,0.00054794,120]
[393973938,1763150162384,-500.0,0.00054794,120]
[393973939,1763150162408,-500.0,0.00054794,120]
[393973940,1763150162433,-500.0,0.00054794,120]
[393973941,1763150162457,-500.0,0.00054794,120]
[393973942,1763150162480,-1436.2,0.00054794,120]
[393973943,1763150162504,-500.0,0.00054794,120]
[393973944,1763150162632,-500.0,0.00054794,120]
[393973945,1763150162660,-1122.26,0.00054794,120]
[393973946,1763150162684,-500.0,0.00054794,120]
[393973947,1763150162708,-500.0,0.00054794,120]
[393973948,1763150162732,-500.0,0.00054794,120]
[393973949,1763150162757,-500.0,0.00054794,120]
[393973950,1763150162782,-965.98,0.00054794,120]
[393973951,1763150162807,-531.66,0.00054794,120]
[393973952,1763150162834,-500.0,0.00054794,120]
[393973953,1763150162860,-500.0,0.00054794,120]
[393973954,1763150162886,-500.0,0.00054794,120]
[393973955,1763150162911,-500.0,0.00054794,120]
[393973956,1763150162936,-500.0,0.00054794,120]
[393973957,1763150162960,-500.0,0.00054794,120]
[393973958,1763150162985,-603.29903568,0.00054794,120]
[393973959,1763150163013,-500.0,0.00054794,120]
[393973960,1763150163042,-500.0,0.00054794,120]
[393973961,1763150163068,-500.0,0.00054794,120]
[393973962,1763150163094,-500.0,0.00054794,120]
[393973963,1763150163118,-500.0,0.00054794,120]
[393973964,1763150163143,-500.0,0.00054794,120]
[393973965,1763150163172,-1101.8,0.00054794,120]
[393973966,1763150163200,-500.0,0.00054794,120]
[393973967,1763150163224,-505.89864598,0.00054794,120]
[393973968,1763150163250,-500.0,0.00054794,120]
[393973969,1763150163277,-500.0,0.00054794,120]
[393973970,1763150163304,-500.0,0.00054794,120]
[393973971,1763150163327,-367.97346026,0.00054794,120]
[393973972,1763150163353,-500.0,0.00054794,120]
[393973973,1763150163377,-500.0,0.00054794,120]
[393973974,1763150163402,-500.0,0.00054794,120]
[393973975,1763150163428,-814.42,0.00054794,120]
[393973976,1763150163453,-500.0,0.00054794,120]
[393973977,1763150163478,-500.0,0.00054794,120]
[393973978,1763150163506,-500.0,0.00054794,120]
[393973979,1763150163531,-500.0,0.00054794,120]
[393973980,1763150163557,-500.0,0.00054794,120]
[393973981,1763150163582,-500.0,0.00054794,120]
[393973982,1763150163607,-500.0,0.00054794,120]
[393973983,1763150163634,-1771.84,0.00054794,120]
[393973984,1763150163659,-500.0,0.00054794,120]
[393973985,1763150163685,-500.0,0.00054794,120]
[393973986,1763150163711,-1787.18,0.00054794,120]
[393973987,1763150163737,-500.0,0.00054794,120]
[393973988,1763150163763,-500.0,0.00054794,120]
[393973989,1763150163788,-500.0,0.00054794,120]
[393973990,1763150163814,-473.87248705,0.00054794,120]
[393973991,1763150163840,-578.45,0.00054794,120]
[393973992,1763150163866,-500.0,0.00054794,120]
[393973993,1763150163893,-895.7,0.00054794,120]
[393973994,1763150163920,-1054.4,0.00054794,120]
[393973995,1763150163945,-500.0,0.00054794,120]
[393973996,1763150163970,-763.55,0.00054794,120]
[393973997,1763150163995,-287.33291916,0.00054794,120]
[393973998,1763150192892,150.0,0.00022077,2]
[393973999,1763150272944,150.0,0.00022069,2]
[393974000,1763150353953,150.0,0.00022065,2]
[393974001,1763150433488,150.0,0.00022044,2]
[393974002,1763150442136,157.21272932,0.0002253,2]
[393974003,1763150464899,999.0,0.00021783,2]
[393974004,1763150512614,150.0,0.00022041,2]
[393974005,1763150529590,169.4832553,0.00010876,2]
[393974006,1763150593914,150.0,0.00022057,2]
[393974431,1763150634005,444.11491799,0.00022189,2]
[393974432,1763150636481,798.60744553,0.00022189,2]
[393974472,1763150643558,160.1973059,0.00030137,120]
[393974604,1763150673099,150.0,0.00022059,2]
[393974721,1763150753559,150.0,0.00022016,2]
[393974722,1763150781604,230.8792599,0.00022189,2]
[393974723,1763150783895,415.16708515,0.00022189,2]
[393974724,1763150825033,2002.5,0.00022562,2]
[393974725,1763150832530,150.0,0.00022017,2]
[393974726,1763150913344,150.0,0.00022002,2]
[393974727,1763150953023,400.38245665,0.00032878,120]
[393974728,1763150990187,150.0,0.00022007,2]
[393974729,1763150998461,-369.41204764,0.00022629,2]
[393974732,1763151021799,168.0,0.00022227,2]
[393974833,1763151032999,-150.0,0.00022629,2]
[393974835,1763151033010,-168.0,0.00022629,2]
[393974837,1763151033019,-157.21272931,0.00022643,2]
[393974839,1763151033029,-300.0,0.00022649,2]
[393974841,1763151033038,-1200.0,0.00022649,2]
[393974842,1763151033047,-1442.1043045,0.0002265,2]
[393974852,1763151033137,-10014.15142391,0.0002265,2]
[393974854,1763151033146,-206.38678929,0.00022665,2]
[393974856,1763151033155,-257.59912433,0.00022665,2]
[393974857,1763151033164,-168.0,0.00022687,2]
[393974859,1763151033174,-727.79055537,0.000227,2]
[393974861,1763151033184,-168.0,0.00022715,2]
[393974863,1763151033194,-500.29531188,0.00022749,2]
[393974865,1763151033206,-370.85836214,0.00022749,2]
[393974867,1763151033215,-235.01662376,0.0002275,2]
[393974869,1763151033224,-500.0,0.0002275,2]
[393974871,1763151033234,-500.0,0.0002275,2]
[393974873,1763151033244,-500.0,0.0002275,2]
[393974875,1763151033254,-500.0,0.0002275,2]
[393974877,1763151033264,-500.0,0.0002275,2]
[393974878,1763151033275,-500.0,0.0002275,2]
[393974880,1763151033286,-500.0,0.0002275,2]
[393974882,1763151033297,-336.62816264,0.0002275,2]
[393974884,1763151033308,-500.0,0.0002275,2]
[393974886,1763151033318,-891.62789945,0.0002275,2]
[393974888,1763151033328,-891.62789945,0.0002275,2]
[393974890,1763151033339,-891.62789945,0.0002275,2]
[393974892,1763151033349,-891.62789945,0.0002275,2]
[393974894,1763151033360,-891.62789945,0.0002275,2]
[393974896,1763151033370,-891.62789945,0.0002275,2]
[393974897,1763151033380,-891.62789945,0.0002275,2]
[393974898,1763151033391,-891.62789945,0.0002275,2]
[393974899,1763151033402,-891.62789945,0.0002275,2]
[393974900,1763151033412,-891.62789945,0.0002275,2]
[393974901,1763151033427,-891.62789945,0.0002275,2]
[393974902,1763151033436,-891.62789945,0.0002275,2]
[393974903,1763151033447,-891.62789945,0.0002275,2]
[393974904,1763151033456,-891.62789945,0.0002275,2]
[393974905,1763151033467,-891.62789945,0.0002275,2]
[393974906,1763151033476,-891.62789945,0.0002275,2]
[393974907,1763151033486,-891.62789945,0.0002275,2]
[393974908,1763151033495,-891.62789945,0.0002275,2]
[393974909,1763151033505,-891.62789945,0.0002275,2]
[393974910,1763151033515,-891.62789945,0.0002275,2]
[393974911,1763151033524,-593.61603509,0.0002275,2]
[393974933,1763151033888,168.0,0.00022391,2]
[393974994,1763151038719,168.0,0.00022259,2]
[393975005,1763151043752,168.0,0.00021991,2]
[393975014,1763151057207,168.0,0.00022131,2]
[393975015,1763151067491,150.0,0.00022063,2]
[393975016,1763151069204,250.0,0.000394,10]
[393975017,1763151069617,250.0,0.000394,10]
[393975018,1763151070008,250.0,0.000394,10]
[393975019,1763151070394,456.491729,0.000394,10]
[393975020,1763151096388,300.00031971,0.000394,30]
[393975021,1763151145108,150.0,0.0002201,2]
[393975022,1763151165997,235.9,0.000394,30]
[393975024,1763151219398,300.0,0.00039395,30]
[393975025,1763151220016,300.0,0.00039395,30]
[393975026,1763151224988,150.0,0.00022071,2]
[393975027,1763151262555,157.21272931,0.00022549,2]
[393975028,1763151271066,168.0,0.00022199,2]
[393975029,1763151304023,150.0,0.00022077,2]
[393975032,1763151333513,200.0,0.00039395,30]
[393975033,1763151383330,150.0,0.00022017,2]
[393975034,1763151461072,150.0,0.00022054,2]
[393975035,1763151538400,150.0,0.00022132,2]
[393975036,1763151577458,400.38245665,0.00032878,120]
[393975038,1763151617769,150.0,0.00022132,2]
[393975040,1763151691777,275.78603808,0.00021979,4]
[393975041,1763151696384,150.0,0.00022131,2]
[393975042,1763151702918,1685.543964,0.00021691,2]
[393975043,1763151775659,150.0,0.00022135,2]
[393975045,1763151843538,836.40969956,0.00021979,4]
[393975046,1763151854503,150.0,0.00022011,2]
[393975047,1763151866912,347.205196,0.00021646,2]
[393975049,1763151874224,10024.22376242,0.00022546,2]
[393975052,1763151934564,150.0,0.00022129,2]
[393975055,1763151947528,730.158335,0.00013699,2]
[393975056,1763151947809,730.158335,0.00020187,2]
[393975058,1763151995874,209.51141532,0.00022189,2]
[393975059,1763151998308,377.12054757,0.00022189,2]
[393975060,1763152013660,150.0,0.00022149,2]
[393975061,1763152064796,8850.27900147,0.00018,2]
[393975062,1763152087662,2703.52211972,0.00022276,2]
[393975063,1763152092513,150.0,0.00022242,2]
[393975083,1763152120216,638.76191206,0.00039368,30]
[393975084,1763152120663,501.86778187,0.00039368,15]
[393975085,1763152121087,181.90417322,0.00039368,120]
[393975086,1763152122307,455.830383,0.00039368,120]
[393975087,1763152143943,635.41062904,0.00022189,2]
[393975088,1763152146196,1429.67391535,0.00022189,2]
[393975090,1763152169116,150.0,0.00022133,2]
[393975188,1763152232973,-205.6995825,0.00022619,2]
[393975190,1763152232982,-151.0,0.00022633,2]
[393975192,1763152232992,-151.0,0.00022633,2]
[393975194,1763152233001,-151.0,0.00022633,2]
[393975196,1763152233010,-151.0,0.00022633,2]
[393975198,1763152233020,-151.0,0.00022633,2]
[393975200,1763152233030,-226.36219256,0.00022633,2]
[393975202,1763152233040,-630.66,0.00022637,3]
[393975204,1763152233049,-198.89382738,0.00022642,2]
[393975205,1763152233058,-259.6008535,0.00022642,2]
[393975207,1763152233067,-350.20671832,0.00022642,2]
[393975209,1763152233087,-500.0,0.00022642,2]
[393975211,1763152233099,-500.0,0.00022642,2]
[393975213,1763152233109,-500.0,0.00022642,2]
[393975215,1763152233119,-500.0,0.00022642,2]
[393975217,1763152233129,-500.0,0.00022642,2]
[393975219,1763152233138,-300.0,0.00022642,2]
[393975221,1763152233148,-370.0,0.00022642,2]
[393975223,1763152233157,-296.0,0.00022643,2]
[393975225,1763152233167,-34210.8302104,0.00022644,2]
[393975230,1763152233208,-500.0,0.00022642,2]
[393975232,1763152233218,-500.0,0.00022642,2]
[393975234,1763152233227,-152.96700882,0.00022642,2]
[393975236,1763152233238,-347.03299118,0.00022642,2]
[393975238,1763152233247,-500.0,0.00022642,2]
[393975239,1763152233257,-500.0,0.00022642,2]
[393975241,1763152233266,-500.0,0.00022642,2]
[393975242,1763152233275,-8398.88112646,0.00022644,2]
[393975261,1763152240624,-385.87412487,0.00022642,2]
[393975262,1763152240633,-456.93227049,0.00022642,2]
[393975342,1763152243742,-43.06772951,0.00022642,2]
[393975344,1763152243751,-500.0,0.00022642,2]
[393975346,1763152243761,-323.29021788,0.00022642,2]
[393975351,1763152243772,-176.70978212,0.00022642,2]
[393975354,1763152243785,-496.88521136,0.00022642,2]
[393975381,1763152243959,-3.11478864,0.00022642,2]
[393975383,1763152243967,-349.13988993,0.00022642,2]
[393975537,1763152246521,150.0,0.00022244,2]
[393975538,1763152246788,-150.86011007,0.00022642,2]
[393975539,1763152246798,-500.0,0.00022642,2]
[393975540,1763152246807,-500.0,0.00022642,2]
[393975541,1763152246816,-500.0,0.00022642,2]
[393975542,1763152246826,-500.0,0.00022642,2]
[393975543,1763152246835,-500.0,0.00022642,2]
[393975544,1763152246845,-402.80708583,0.00022642,2]
[393975545,1763152246854,-500.0,0.00022642,2]
[393975546,1763152246865,-500.0,0.00022642,2]
[393975547,1763152246874,-500.0,0.00022642,2]
[393975548,1763152246884,-500.0,0.00022642,2]
[393975549,1763152246893,-500.0,0.00022642,2]
[393975550,1763152246902,-500.0,0.00022642,2]
[393975551,1763152246911,-500.0,0.00022642,2]
[393975552,1763152246920,-500.0,0.00022642,2]
[393975553,1763152246929,-500.0,0.00022642,2]
[393975554,1763152246938,-500.0,0.00022642,2]
[393975555,1763152246947,-500.0,0.00022642,2]
[393975556,1763152246957,-500.0,0.00022642,2]
[393975557,1763152246966,-500.0,0.00022642,2]